bitfinex/quotes_SOLUSD_20260228
["timestamp","ask_amount","ask_price","bid_price","bid_amount"]
[1772266383481,0.51370638,78.708,78.679,0.48535271]
[1772266383674,0.71370638,78.7,78.679,0.48535271]
[1772266384278,0.51370638,78.699,78.673,13.19609876]
[1772266384679,0.51370638,78.699,78.674,0.48535271]
[1772266385373,0.2,78.7,78.674,0.48535271]
[1772266385677,0.71370638,78.7,78.674,0.48535271]
[1772266387784,0.71370638,78.7,78.676,0.48535271]
[1772266387990,0.51370638,78.689,78.657,0.48535271]
[1772266388192,0.51370638,78.689,78.6,6.464752]
[1772266388193,0.51370638,78.679,78.644,0.48535271]
[1772266388567,0.51370638,78.679,78.651,0.48535271]
[1772266389286,0.51370638,78.679,78.648,12.71475329]
[1772266389491,0.51370638,78.659,78.631,0.48535271]
[1772266389985,0.51370638,78.649,78.621,0.48535271]
[1772266391292,0.49107838,78.639,78.612,12.72070421]
[1772266391490,0.49107838,78.639,78.612,13.22651041]
[1772266391880,0.49107838,78.639,78.612,12.72070421]
[1772266393583,0.49107838,78.639,78.611,0.5058062]
[1772266394691,0.49107838,78.637,78.606,12.72167519]
[1772266395999,0.49107838,78.637,78.61,17.3236586]
[1772266396900,0.49107838,78.637,78.611,0.5058062]
[1772266397094,0.49107838,78.637,78.62,17.3236586]
[1772266397295,0.49107838,78.637,78.61,17.3236586]
[1772266398102,0.49107838,78.637,78.611,12.72086603]
[1772266398301,0.49107838,78.637,78.62,17.3236586]
[1772266398503,0.49107838,78.637,78.612,0.5058062]
[1772266399001,0.49107838,78.635,78.611,12.72086603]
[1772266399201,0.49107838,78.635,78.602,12.72232258]
[1772266400104,5.36086188,78.665,78.592,12.72394136]
[1772266400105,0.49107838,78.619,78.592,12.72394136]
[1772266400300,0.49107838,78.619,78.593,0.5058062]
[1772266401703,0.49107838,78.627,78.6,17.32830343]
[1772266401883,0.49107838,78.647,78.621,0.5058062]
[1772266402282,0.49107838,78.645,78.621,0.5058062]
[1772266402498,0.49107838,78.645,78.62,17.32830343]
[1772266404008,0.49107838,78.645,78.621,12.71924803]
[1772266404506,0.49107838,78.643,78.621,12.71924803]
[1772266406504,0.49107838,78.643,78.617,12.71989518]
[1772266407507,0.49107838,78.643,78.617,0.5058062]
[1772266409107,0.49107838,78.641,78.617,0.5058062]
[1772266409692,0.49107838,78.641,78.62,17.32830343]
[1772266410502,0.49107838,78.641,78.618,13.22553959]
[1772266410805,0.49107838,78.641,78.619,0.5058062]
[1772266411002,0.49107838,78.641,78.621,0.5058062]
[1772266411200,13.20638505,78.646,78.621,0.5058062]
[1772266411904,0.49107838,78.661,78.631,0.5058062]
[1772266412306,0.49107838,78.661,78.6,6.46593492]
[1772266412307,0.49107838,78.639,78.6,0.5058062]
[1772266412495,0.49107838,78.629,78.594,12.72361757]
[1772266412695,0.49107838,78.629,78.595,0.5058062]
[1772266413914,0.49107838,78.627,78.597,0.5058062]
[1772266414090,0.49107838,78.619,78.583,32.31902323]
[1772266414295,0.49107838,78.609,78.582,0.5058062]
[1772266414994,6.46593492,78.61,78.582,0.5058062]
[1772266415206,17.33685237,78.61,78.582,0.5058062]
[1772266415510,17.33685237,78.61,78.584,0.5058062]
[1772266415713,12.72046895,78.614,78.584,0.5058062]
[1772266417411,63.78638523,78.672,78.583,12.72539862]
[1772266417412,0.49107838,78.638,78.601,0.5058062]
[1772266417625,12.71682181,78.636,78.603,0.5058062]
[1772266417805,17.33685237,78.62,78.594,0.5058062]
[1772266418616,17.82793075,78.62,78.594,0.5058062]
[1772266418795,12.71682181,78.636,78.584,0.5058062]
[1772266418796,0.49107838,78.609,78.584,0.5058062]
[1772266419002,17.33685237,78.61,78.584,0.5058062]
[1772266419721,12.72118968,78.609,78.584,0.5058062]
[1772266421016,12.72118968,78.609,78.57,26.35429178]
[1772266421017,12.7173426,78.633,78.601,0.48425445]
[1772266421220,17.79646756,78.63,78.601,0.48425445]
[1772266421414,12.7173426,78.633,78.601,0.48425445]
[1772266421618,0.45961519,78.634,78.601,0.48425445]
[1772266422515,30.53720366,78.64,78.611,0.48025521]
[1772266422729,0.484073,78.639,78.611,0.48025521]
[1772266423400,0.484073,78.637,78.611,0.48025521]
[1772266423919,0.484073,78.637,78.604,0.48025521]
[1772266424121,17.33685237,78.63,78.604,0.48025521]
[1772266424519,17.82092537,78.63,78.604,0.48025521]
[1772266424717,0.484073,78.629,78.604,0.48025521]
[1772266425607,12.71811568,78.628,78.604,0.48025521]
[1772266425809,0.484073,78.627,78.604,0.48025521]
[1772266426322,0.484073,78.627,78.595,12.72340212]
[1772266426323,0.484073,78.639,78.606,0.48025521]
[1772266426521,0.484073,78.638,78.606,0.48025521]
[1772266427211,0.484073,78.619,78.576,0.48025521]
[1772266427520,44.50717836,78.639,78.576,0.48025521]
[1772266427521,17.33685237,78.61,78.576,0.48025521]
[1772266427913,13.20526268,78.609,78.578,0.48025521]
[1772266428327,0.484073,78.608,78.578,0.48025521]
[1772266428824,12.72151335,78.607,78.578,0.48025521]
[1772266429022,17.33685237,78.6,78.578,0.48025521]
[1772266429225,13.20558635,78.607,78.578,0.48025521]
[1772266429525,0.484073,78.606,78.578,0.48025521]
[1772266429726,0.484073,78.589,78.57,26.35429178]
[1772266430027,17.33685237,78.59,78.571,0.48025521]
[1772266430926,17.33685237,78.58,78.57,22.60610075]
[1772266431120,17.33685237,78.59,78.571,0.48025521]
[1772266431538,12.7239719,78.592,78.571,0.48025521]
[1772266431712,12.7239719,78.592,78.564,12.72844924]
[1772266431713,12.72335221,78.596,78.564,0.48025521]
[1772266432813,17.33685237,78.6,78.564,0.48025521]
[1772266433009,5.36086188,78.625,78.517,17.75446967]
[1772266433010,17.33685237,78.61,78.571,0.48025521]
[1772266434025,12.72122529,78.609,78.573,0.48025521]
[1772266435026,12.72122529,78.609,78.57,17.33685237]
[1772266435027,12.72122529,78.609,78.574,12.72685621]
[1772266435226,12.72122529,78.609,78.575,0.48025521]
[1772266436127,12.72122529,78.609,78.577,0.48025521]
[1772266438729,6.47396608,78.6,78.577,0.48025521]
[1772266439124,6.47396608,78.6,78.578,12.72620835]
[1772266439321,6.47396608,78.6,78.579,0.48025521]
[1772266440231,0.484073,78.599,78.579,0.48025521]
[1772266440420,6.47396608,78.59,78.572,0.48025521]
[1772266440617,6.47396608,78.59,78.555,0.48025521]
[1772266441122,6.47396608,78.58,78.555,0.48025521]
[1772266442323,6.47396608,78.58,78.557,0.48025521]
[1772266443022,6.47396608,78.6,78.557,0.48025521]
[1772266443023,6.47396608,78.59,78.557,0.48025521]
[1772266443533,13.20850008,78.589,78.557,0.48025521]
[1772266444339,19.19988358,78.58,78.557,0.48025521]
[1772266444535,6.47396608,78.58,78.559,0.48025521]
[1772266445723,0.484073,78.582,78.559,0.48025521]
[1772266445923,0.484073,78.579,78.558,12.7294483]
[1772266446419,6.47396608,78.58,78.558,0.48025521]
[1772266447325,12.72442708,78.589,78.558,0.48025521]
[1772266447524,0.484073,78.588,78.558,0.48025521]
[1772266447841,6.47396608,78.58,78.558,0.48025521]
[1772266449236,12.72604639,78.579,78.558,0.48025521]
[1772266450037,6.47396608,78.58,78.56,0.48025521]
[1772266450238,12.72604639,78.579,78.542,0.48025521]
[1772266450838,6.47396608,78.57,78.542,0.48025521]
[1772266451641,6.47396608,78.57,78.544,0.46152681]
[1772266452039,12.72636454,78.578,78.544,0.46152681]
[1772266452434,6.47396608,78.57,78.544,0.46152681]
[1772266452629,12.72636454,78.578,78.544,0.46152681]
[1772266453030,12.72636454,78.578,78.555,0.46152681]
[1772266453642,0.4779308,78.569,78.541,0.46152681]
[1772266454843,6.47396608,78.56,78.541,0.46152681]
[1772266455041,0.4779308,78.549,78.53,0.1]
[1772266455344,6.47396608,78.54,78.53,0.1]
[1772266456440,6.47396608,78.54,78.52,13.19710619]
[1772266456441,0.4779308,78.539,78.512,0.46152681]
[1772266456641,6.47396608,78.53,78.505,0.46152681]
[1772266457247,6.47396608,78.53,78.509,12.73735682]
[1772266457660,6.47396608,78.52,78.501,12.73869122]
[1772266457945,6.47396608,78.52,78.5,0.1]
[1772266458348,6.47396608,78.52,78.502,0.46152681]
[1772266458740,6.47396608,78.52,78.5,0.1]
[1772266458936,6.47396608,78.52,78.5,0.56152681]
[1772266459453,6.47396608,78.52,78.501,12.73869122]
[1772266461341,6.48821337,78.52,78.501,12.73869122]
[1772266462953,6.48821337,78.52,78.501,0.46152681]
[1772266463560,6.96614417,78.52,78.501,0.46152681]
[1772266464557,6.48821337,78.51,78.5,0.1]
[1772266464854,6.48821337,78.51,78.471,0.46152681]
[1772266464855,0.4779308,78.507,78.471,0.46152681]
[1772266465167,6.48821337,78.5,78.471,0.46152681]
[1772266465554,6.48821337,78.49,78.471,0.46152681]
[1772266466241,6.48821337,78.49,78.46,0.1]
[1772266466242,0.4779308,78.479,78.46,0.1]
[1772266466440,6.48821337,78.47,78.46,0.1]
[1772266466951,6.96614417,78.47,78.437,0.46152681]
[1772266467153,6.48821337,78.46,78.437,0.46152681]
[1772266467454,6.48821337,78.47,78.437,0.46152681]
[1772266467657,6.48821337,78.48,78.441,0.46152681]
[1772266467866,6.48821337,78.49,78.451,0.46152681]
[1772266468066,6.48821337,78.49,78.461,0.46152681]
[1772266469465,6.48821337,78.49,78.463,0.46152681]
[1772266469960,12.74063881,78.489,78.463,0.46152681]
[1772266470170,6.48821337,78.49,78.463,0.46152681]
[1772266471040,6.48821337,78.49,78.462,12.74502306]
[1772266471041,0.4779308,78.489,78.462,12.74502306]
[1772266471253,0.4779308,78.469,78.431,12.75006056]
[1772266471449,6.48821337,78.45,78.432,0.46152681]
[1772266472270,0.4779308,78.451,78.431,12.75006056]
[1772266472457,6.48821337,78.44,78.43,0.1]
[1772266472658,0.4779308,78.449,78.43,0.1]
[1772266472853,0.4779308,78.459,78.43,0.1]
[1772266473161,3.49,79.637,78.43,0.1]
[1772266473162,6.48821337,78.44,78.43,0.1]
[1772266473866,12.74876018,78.439,78.415,0.46152681]
[1772266474060,0.4779308,78.463,78.421,0.46152681]
[1772266474252,6.48821337,78.46,78.421,0.46152681]
[1772266474653,6.48821337,78.45,78.421,0.46152681]
[1772266474855,6.48821337,78.46,78.421,0.46152681]
[1772266475054,6.48821337,78.45,78.421,0.46152681]
[1772266475267,14.50682915,78.45,78.423,0.46152681]
[1772266476572,8.15571554,78.473,78.423,0.46152681]
[1772266476573,14.50682915,78.46,78.423,0.46152681]
[1772266476763,0.50540203,78.487,78.452,0.1317159]
[1772266476970,0.50540203,78.487,78.46,14.50682915]
[1772266477367,0.50540203,78.487,78.461,12.7451855]
[1772266478569,0.50540203,78.487,78.46,14.50682915]
[1772266479376,0.50540203,78.487,78.425,0.28432314]
[1772266479764,0.50540203,78.487,78.424,44.62919514]
[1772266479765,0.50540203,78.479,78.424,44.62919514]
[1772266480078,0.50540203,78.439,78.411,12.75331267]
[1772266481372,0.50540203,78.448,78.42,14.50682915]
[1772266481885,0.50540203,78.449,78.42,14.50682915]
[1772266482269,20.85847073,78.473,78.43,14.50682915]
[1772266482270,0.50540203,78.458,78.43,14.50682915]
[1772266482672,52.71656204,78.473,78.44,14.50682915]
[1772266482673,0.50540203,78.469,78.44,14.50682915]
[1772266484663,0.50540203,78.469,78.441,12.74843512]
[1772266484972,0.50540203,78.467,78.441,12.74843512]
[1772266485173,0.50540203,78.467,78.432,12.749898]
[1772266485370,0.50540203,78.467,78.44,14.50682915]
[1772266486568,0.50540203,78.467,78.432,44.624643]
[1772266486769,0.50540203,78.465,78.432,44.624643]
[1772266487197,0.50540203,78.449,78.41,14.50682915]
[1772266488863,0.50540203,78.449,78.411,44.63659435]
[1772266489086,0.50540203,78.449,78.42,14.50682915]
[1772266489284,0.50540203,78.447,78.42,14.50682915]
[1772266489589,0.50540203,78.469,78.44,14.50682915]
[1772266489795,0.50540203,78.468,78.44,14.50682915]
[1772266490086,0.50540203,78.468,78.43,14.50682915]
[1772266490288,0.50540203,78.468,78.411,108.40315771]
[1772266490585,0.50540203,78.468,78.431,12.75006056]
[1772266490782,0.50540203,78.466,78.431,12.75006056]
[1772266491178,0.50540203,78.466,78.431,44.62521196]
[1772266491363,0.50540203,78.449,78.41,14.50682915]
[1772266491568,0.50540203,78.459,78.43,14.50682915]
[1772266492780,8.11523421,78.473,78.451,12.74681011]
[1772266493365,8.11523421,78.473,78.424,63.75556686]
[1772266493366,0.50540203,78.472,78.44,14.50682915]
[1772266493683,0.50540203,78.469,78.43,14.50682915]
[1772266494889,0.50540203,78.467,78.431,12.75006056]
[1772266495684,0.50540203,78.459,78.431,12.75006056]
[1772266497170,0.50540203,78.459,78.416,12.75249948]
[1772266497371,0.50540203,78.449,78.416,12.75249948]
[1772266499081,0.50540203,78.439,78.41,14.50682915]
[1772266499289,0.50540203,78.439,78.411,12.75331267]
[1772266499488,0.50540203,78.439,78.411,44.63659435]
[1772266500276,0.50540203,78.439,78.42,14.50682915]
[1772266501702,0.50540203,78.452,78.42,14.50682915]
[1772266501877,0.50540203,78.449,78.41,14.50682915]
[1772266502495,0.50540203,78.449,78.39,63.88321662]
[1772266502668,0.50540203,78.429,78.39,14.60682915]
[1772266502871,0.50540203,78.429,78.312,51.07738771]
[1772266502872,0.46054494,78.399,78.361,0.33224544]
[1772266503270,0.46054494,78.399,78.37,14.83907459]
[1772266503572,0.46054494,78.399,78.371,12.75982187]
[1772266503974,0.46054494,78.399,78.364,12.76095803]
[1772266503975,0.46054494,78.398,78.364,12.76095803]
[1772266504191,0.46054494,78.398,78.36,14.83907459]
[1772266504192,0.46054494,78.379,78.35,0.1]
[1772266504493,0.46054494,78.369,78.35,0.1]
[1772266505589,0.46054494,78.367,78.35,0.1]
[1772266505780,5.36086188,78.396,78.35,0.1]
[1772266505781,0.46054494,78.385,78.36,14.50682915]
[1772266505984,0.46054494,78.385,78.37,14.50682915]
[1772266506187,14.50682915,78.4,78.35,0.1]
[1772266506188,0.46054494,78.393,78.38,14.50682915]
[1772266506388,0.46054494,78.412,78.381,0.33224544]
[1772266506589,0.46054494,78.421,78.4,14.50682915]
[1772266506794,0.46054494,78.432,78.41,14.50682915]
[1772266507087,12.7498406,78.433,78.4,14.50682915]
[1772266507088,0.46054494,78.429,78.4,14.50682915]
[1772266507471,0.46054494,78.429,78.401,12.75493935]
[1772266508278,0.46054494,78.429,78.397,12.75558857]
[1772266508478,0.46054494,78.429,78.4,14.50682915]
[1772266508790,0.46054494,78.447,78.411,0.33224544]
[1772266508985,0.46054494,78.455,78.43,14.50682915]
[1772266509288,0.46054494,78.455,78.421,0.33224544]
[1772266509487,0.46054494,78.455,78.431,12.75006056]
[1772266509684,8.11240639,78.463,78.44,14.50682915]
[1772266509891,8.57295133,78.463,78.44,14.50682915]
[1772266510205,13.205568,78.462,78.431,12.75006056]
[1772266510371,0.48157326,78.461,78.431,12.75006056]
[1772266510574,0.48157326,78.461,78.44,14.50682915]
[1772266510796,0.48157326,78.461,78.431,12.75006056]
[1772266511191,0.48157326,78.461,78.431,44.62521196]
[1772266511391,0.48157326,78.461,78.44,14.50682915]
[1772266511694,8.11240639,78.463,78.441,12.74843512]
[1772266512576,31.85134016,78.49,78.441,12.74843512]
[1772266512577,0.48157326,78.481,78.45,14.50682915]
[1772266512792,0.48157326,78.479,78.442,0.33224544]
[1772266513391,0.48157326,78.479,78.44,14.50682915]
[1772266513598,0.48157326,78.457,78.421,12.75168641]
[1772266513780,0.48157326,78.457,78.396,63.77825307]
[1772266513781,0.48157326,78.439,78.406,0.33224544]
[1772266513984,0.48157326,78.439,78.407,12.75396329]
[1772266514184,0.48157326,78.439,78.41,14.50682915]
[1772266514679,14.50682915,78.45,78.42,14.50682915]
[1772266514680,0.48157326,78.45,78.42,14.50682915]
[1772266514879,0.48157326,78.459,78.421,0.33224544]
[1772266515380,0.48157326,78.458,78.421,0.33224544]
[1772266515575,0.48157326,78.456,78.421,12.75168641]
[1772266516701,14.50682915,78.46,78.43,14.50682915]
[1772266516883,14.98840241,78.46,78.43,14.50682915]
[1772266517503,0.48157326,78.459,78.43,14.50682915]
[1772266517895,0.48157326,78.458,78.431,12.75006056]
[1772266518198,0.48157326,78.458,78.426,12.75071942]
[1772266519800,0.48157326,78.456,78.421,12.75153583]
[1772266520186,0.48157326,78.456,78.422,0.33224544]
[1772266520593,0.48157326,78.456,78.43,14.50682915]
[1772266520799,0.48157326,78.468,78.431,0.33224544]
[1772266521595,0.48157326,78.459,78.421,44.63075185]
[1772266522495,0.48157326,78.457,78.421,44.63075185]
[1772266522891,0.48157326,78.457,78.422,0.33224544]
[1772266523693,0.48157326,78.457,78.43,14.50367894]
[1772266523894,12.74500953,78.463,78.431,12.75006056]
[1772266524198,12.74500953,78.463,78.432,0.33224544]
[1772266524398,0.48157326,78.465,78.432,0.33224544]
[1772266525011,0.48157326,78.479,78.441,0.33224544]
[1772266525303,44.59086448,78.492,78.44,14.50367894]
[1772266525304,0.48157326,78.469,78.44,14.50367894]
[1772266525499,0.48157326,78.469,78.44,14.83592438]
[1772266526010,0.48157326,78.467,78.44,12.74851257]
[1772266526188,0.48157326,78.467,78.44,27.25219151]
[1772266528389,0.48157326,78.465,78.433,44.62407404]
[1772266528594,0.48157326,78.459,78.42,14.50367894]
[1772266528808,0.48157326,78.459,78.42,14.83592438]
[1772266529001,0.48157326,78.459,78.421,0.33224544]
[1772266529818,0.48157326,78.459,78.43,14.83592438]
[1772266531003,0.48157326,78.459,78.431,44.62521196]
[1772266532435,0.48157326,78.489,78.451,0.33224544]
[1772266532732,0.48157326,78.489,78.46,14.50367894]
[1772266533109,0.48157326,78.489,78.461,12.7451855]
[1772266534521,0.48157326,78.487,78.452,12.74664763]
[1772266534733,14.50367894,78.48,78.452,12.74664763]
[1772266534927,0.48157326,78.487,78.452,12.74664763]
[1772266535109,0.48157326,78.487,78.452,0.33224544]
[1772266535305,0.48157326,78.489,78.452,0.33224544]
[1772266535812,8.11199133,78.493,78.461,0.33224544]
[1772266536020,8.11199133,78.493,78.471,0.33224544]
[1772266536198,0.48157326,78.498,78.471,0.33224544]
[1772266536711,0.48157326,78.498,78.461,0.33224544]
[1772266537423,0.48157326,78.498,78.463,0.33224544]
[1772266537622,0.48157326,78.506,78.471,0.33224544]
[1772266538713,0.48157326,78.499,78.463,0.33224544]
[1772266539112,0.48157326,78.499,78.471,0.33224544]
[1772266539508,0.48157326,78.499,78.472,12.74339891]
[1772266539717,14.70367894,78.51,78.481,0.33224544]
[1772266539718,0.2,78.51,78.481,0.33224544]
[1772266539909,0.2,78.51,78.472,44.6018962]
[1772266539910,0.48157326,78.526,78.491,0.33224544]
[1772266540245,0.48157326,78.539,78.51,14.50367894]
[1772266540408,0.48157326,78.539,78.472,44.6018962]
[1772266540409,0.48157326,78.539,78.502,0.33224544]
[1772266540607,0.48018549,78.538,78.502,0.33224544]
[1772266541121,0.48018549,78.546,78.511,0.33224544]
[1772266541309,14.50367894,78.54,78.511,0.33224544]
[1772266541505,0.2,78.55,78.473,5.36086188]
[1772266541509,14.70367894,78.55,78.512,12.73690646]
[1772266541711,0.2,78.55,78.521,0.33224544]
[1772266543010,0.2,78.55,78.531,0.33224544]
[1772266543826,0.2,78.55,78.532,12.73366271]
[1772266544034,0.2,78.55,78.532,13.06590815]
[1772266544254,0.49387821,78.594,78.542,0.13224544]
[1772266544420,0.49387821,78.594,78.56,14.50367894]
[1772266544934,0.49387821,78.594,78.561,0.13224544]
[1772266545436,0.49387821,78.603,78.57,14.50367894]
[1772266546041,0.2,78.61,78.58,14.50367894]
[1772266546332,0.69387821,78.61,78.58,14.50367894]
[1772266546533,0.49387821,78.609,78.572,0.13224544]
[1772266546740,0.49387821,78.609,78.531,63.46375778]
[1772266546741,0.49387821,78.579,78.541,12.73220356]
[1772266546922,0.49387821,78.569,78.541,12.73220356]
[1772266547924,0.49387821,78.569,78.541,44.56271246]
[1772266548826,0.49387821,78.579,78.541,44.56271246]
[1772266549547,14.50367894,78.59,78.551,0.46298655]
[1772266550322,14.50367894,78.6,78.561,0.46298655]
[1772266550523,31.80297421,78.609,78.571,0.46298655]
[1772266550524,12.72118968,78.609,78.571,0.46298655]
[1772266551428,14.50367894,78.59,78.552,44.55647214]
[1772266551634,0.49387821,78.589,78.552,44.55647214]
[1772266552126,0.49387821,78.589,78.552,45.01945869]
[1772266552637,0.49387821,78.589,78.553,0.46298655]
[1772266554543,0.49387821,78.579,78.541,0.46298655]
[1772266555527,0.49387821,78.579,78.54,14.50367894]
[1772266555528,0.49387821,78.579,78.543,0.46298655]
[1772266556050,0.49387821,78.577,78.543,0.46298655]
[1772266556238,0.49387821,78.577,78.542,12.73204145]
[1772266557026,0.49387821,78.577,78.543,0.46298655]
[1772266557740,0.49387821,78.577,78.545,0.46298655]
[1772266560128,0.49387821,78.577,78.546,12.73139306]
[1772266560434,0.49387821,78.609,78.571,0.46298655]
[1772266560726,0.49387821,78.609,78.58,14.50367894]
[1772266561429,0.49387821,78.609,78.55,14.50367894]
[1772266561430,0.49387821,78.631,78.591,0.46298655]
[1772266561634,0.49387821,78.629,78.591,0.46298655]
[1772266562036,0.49387821,78.629,78.535,6.6341795]
[1772266562037,0.49387821,78.597,78.551,44.55703936]
[1772266562243,0.49387821,78.589,78.551,44.55703936]
[1772266562443,0.49387821,78.589,78.552,0.46298655]
[1772266563151,0.49387821,78.609,78.58,14.50367894]
[1772266563458,0.49387821,78.609,78.571,0.46298655]
[1772266563630,0.49387821,78.599,78.561,0.46298655]
[1772266563951,0.49387821,78.579,78.545,12.73142573]
[1772266564246,0.49387821,78.579,78.542,0.46298655]
[1772266564632,0.49387821,78.577,78.542,0.46298655]
[1772266566157,0.49387821,78.577,78.543,44.56157773]
[1772266566342,0.49387821,78.577,78.543,45.02456428]
[1772266567554,0.49387821,78.598,78.561,0.46298655]
[1772266567740,14.50367894,78.59,78.549,0.46298655]
[1772266567944,0.49387821,78.598,78.545,44.56044304]
[1772266567945,0.49387821,78.579,78.545,13.1945417]
[1772266568138,0.49387821,78.579,78.55,14.50367894]
[1772266568538,0.49387821,78.579,78.545,45.02342959]
[1772266568539,0.49387821,78.588,78.561,0.46298655]
[1772266568862,0.49387821,78.579,78.545,44.56044304]
[1772266569154,0.49387821,78.579,78.55,14.50367894]
[1772266569354,0.49387821,78.579,78.55,14.96666549]
[1772266569559,0.49387821,78.579,78.551,45.02002591]
[1772266570444,0.49387821,78.579,78.552,0.49170494]
[1772266571734,0.49387821,78.579,78.553,12.73025855]
[1772266572544,0.47594136,78.591,78.561,0.49170494]
[1772266572741,0.47594136,78.589,78.553,44.55590492]
[1772266572938,0.47594136,78.589,78.505,5.36086188]
[1772266572939,0.47594136,78.579,78.54,14.99538388]
[1772266573865,0.47594136,78.579,78.541,44.56271246]
[1772266574664,0.47594136,78.577,78.541,44.56271246]
[1772266575570,0.47594136,78.569,78.541,44.56271246]
[1772266575748,0.47594136,78.569,78.541,12.73220356]
[1772266575957,0.47594136,78.569,78.52,14.50367894]
[1772266575958,0.47594136,78.559,78.52,14.50367894]
[1772266576159,0.47594136,78.559,78.522,0.49170494]
[1772266577261,0.47594136,78.559,78.524,0.49170494]
[1772266577595,0.47594136,78.559,78.531,0.49170494]
[1772266578670,0.47594136,78.569,78.531,0.49170494]
[1772266578961,0.47594136,78.585,78.551,0.49170494]
[1772266579353,0.47594136,78.583,78.553,0.49170494]
[1772266579760,0.47594136,78.599,78.56,14.50367894]
[1772266579945,0.47594136,78.579,78.546,12.73129626]
[1772266581358,0.47594136,78.579,78.542,31.82996115]
[1772266581359,0.47594136,78.578,78.542,31.82996115]
[1772266582045,0.47594136,78.578,78.543,0.49170494]
[1772266582247,0.47594136,78.577,78.542,31.82996115]
[1772266582468,0.47594136,78.577,78.543,0.49170494]
[1772266582851,0.47594136,78.577,78.542,31.82996115]
[1772266583576,0.47594136,78.569,78.541,12.73220356]
[1772266585152,0.47594136,78.569,78.541,45.0544174]
[1772266586177,0.47594136,78.569,78.541,12.73220356]
[1772266586762,0.47594136,78.568,78.541,12.73220356]
[1772266588466,0.47594136,78.568,78.534,0.49170494]
[1772266589952,14.46027853,78.6,78.533,44.56725197]
[1772266589953,0.47594136,78.598,78.56,14.46027853]
[1772266590147,0.47594136,78.589,78.561,0.49170494]
[1772266590351,0.47594136,78.589,78.562,12.72880018]
[1772266590766,0.47594136,78.589,78.563,0.49170494]
[1772266590966,0.47594136,78.599,78.563,0.49170494]
[1772266591351,0.47594136,78.589,78.562,12.72880018]
[1772266592065,0.47594136,78.589,78.557,12.72947469]
[1772266592370,0.47594136,78.579,78.55,59.01788514]
[1772266592573,0.47594136,78.579,78.551,0.49170494]
[1772266594651,0.47594136,78.579,78.552,12.73042061]
[1772266594960,0.47594136,78.597,78.561,0.49170494]
[1772266596050,14.46027853,78.61,78.571,0.49170494]
[1772266596255,0.47594136,78.609,78.571,0.49170494]
[1772266597392,0.47594136,78.609,78.525,63.31996541]
[1772266597393,0.47594136,78.625,78.591,0.49170494]
[1772266597857,0.47594136,78.625,78.6,14.95198347]
[1772266598169,0.47594136,78.625,78.6,0.49170494]
[1772266598379,0.47594136,78.625,78.592,0.49170494]
[1772266598672,0.47594136,78.625,78.6,14.46027853]
[1772266599178,0.47594136,78.634,78.601,0.49170494]
[1772266599375,8.54550901,78.633,78.603,0.49170494]
[1772266599562,0.47594136,78.649,78.611,0.49170494]
[1772266601258,0.47170621,78.637,78.602,12.72232258]
[1772266601479,0.47170621,78.637,78.603,0.4811295]
[1772266602451,0.47170621,78.637,78.602,12.72232258]
[1772266602452,0.47170621,78.637,78.61,14.95411594]
[1772266602677,0.47170621,78.637,78.573,0.28432314]
[1772266602881,0.47170621,78.637,78.6,14.46027853]
[1772266603978,0.47170621,78.637,78.573,0.28432314]
[1772266603979,0.48564405,78.629,78.591,12.72410326]
[1772266604360,0.48564405,78.629,78.591,44.53436143]
[1772266604760,12.71682181,78.636,78.61,14.46027853]
[1772266604761,0.48564405,78.636,78.61,14.46027853]
[1772266605171,0.48564405,78.636,78.601,0.13228624]
[1772266605489,0.48564405,78.636,78.6,14.46027853]
[1772266605490,0.48564405,78.66,78.613,0.13228624]
[1772266605784,31.97840039,78.67,78.6,14.46027853]
[1772266605785,0.48564405,78.649,78.61,14.46027853]
[1772266605969,0.48564405,78.639,78.601,12.72248444]
[1772266606480,0.48564405,78.648,78.611,0.13228624]
[1772266606683,0.48564405,78.656,78.621,0.13228624]
[1772266606866,0.48564405,78.656,78.62,14.46027853]
[1772266607378,0.48564405,78.656,78.63,14.46027853]
[1772266607760,0.48564405,78.656,78.621,12.71924803]
[1772266607965,0.48564405,78.656,78.621,12.85153427]
[1772266608166,0.48564405,78.656,78.621,44.64965436]
[1772266608675,14.46027853,78.66,78.63,14.46027853]
[1772266608878,0.48564405,78.669,78.65,14.46027853]
[1772266609083,0.48564405,78.669,78.641,0.13228624]
[1772266609279,14.66027853,78.69,78.65,14.46027853]
[1772266609481,1e-08,78.69,78.67,14.46027853]
[1772266609774,1e-08,78.69,78.671,12.71116421]
[1772266609975,1e-08,78.69,78.662,13.20645595]
[1772266610186,14.46027854,78.69,78.653,0.49383741]
[1772266610371,14.46027854,78.69,78.601,8.35839167]
[1772266610372,14.46027853,78.68,78.64,14.46027853]
[1772266610686,14.46027853,78.68,78.641,0.49383741]
[1772266610985,14.46027853,78.67,78.635,12.71695079]
[1772266611182,0.48564405,78.669,78.635,13.2107882]
[1772266611963,0.48564405,78.667,78.62,0.49383741]
[1772266612164,0.48564405,78.667,78.537,50.93091624]
[1772266612165,0.48564405,78.649,78.621,12.71924803]
[1772266613392,0.48564405,78.639,78.601,31.80617788]
[1772266613570,0.48564405,78.68,78.631,0.49383741]